fUST/lending_fUST_20251106
["ID","MTS","AMOUNT","RATE_DAILY","PERIOD"]
[393260616,1762397624034,321.44910737,0.0003729,60]
[393260617,1762397624084,359.79859606,0.0003729,60]
[393260618,1762397625462,171.16824738,0.0003729,60]
[393260619,1762397625500,302.27995533,0.0003729,60]
[393260620,1762397625672,500.0,0.0003729,60]
[393260621,1762397625877,336.43290984,0.0003729,60]
[393260622,1762397627053,368.313337,0.0003729,60]
[393260623,1762397627637,367.60689796,0.0003729,60]
[393260624,1762397631757,431.40134427,0.0003729,60]
[393260625,1762397632007,212.75361901,0.0003729,60]
[393260626,1762397632827,562.24809,0.00013699,2]
[393260627,1762397632896,270.9902274,0.0003729,60]
[393260628,1762397636725,502.07591371,0.0003729,60]
[393260630,1762397638986,324.23418258,0.0003729,60]
[393260631,1762397639495,500.0,0.0003729,60]
[393260632,1762397639761,172.17609606,0.0003729,60]
[393260633,1762397640676,326.26149196,0.0003729,60]
[393260634,1762397641086,236.65058937,0.0003729,60]
[393260635,1762397641127,370.10732875,0.0003729,60]
[393260636,1762397641311,265.0356707,0.0003729,60]
[393260637,1762397641724,387.35301231,0.0003729,60]
[393260638,1762397644728,331.25491876,0.0003729,60]
[393260639,1762397647299,359.25211779,0.0003729,60]
[393260640,1762397647413,318.70034699,0.0003729,60]
[393260641,1762397648824,248.95456564,0.0003729,60]
[393260642,1762397649490,414.3635464,0.0003729,60]
[393260643,1762397650277,401.9431894,0.0003729,60]
[393260644,1762397650317,438.09558522,0.0003729,60]
[393260645,1762397651218,546.34831441,0.0003729,60]
[393260646,1762397651674,442.2631598,0.0003729,60]
[393260647,1762397652717,342.52251019,0.0003729,60]
[393260648,1762397653041,400.00198054,0.0003729,60]
[393260649,1762397653237,259.96381098,0.0003729,60]
[393260650,1762397656249,393.99986157,0.0003729,60]
[393260651,1762397656489,163.950152,0.0003729,60]
[393260652,1762397656955,350.48456011,0.0003729,60]
[393260653,1762397657279,324.30105993,0.00037302,60]
[393260654,1762397657916,380.10470036,0.00037302,60]
[393260655,1762397658570,293.54865903,0.00037302,60]
[393260656,1762397658799,187.77908069,0.00037302,60]
[393260657,1762397660020,582.52394078,0.00037302,60]
[393260658,1762397661757,230.75725709,0.00037302,60]
[393260659,1762397662085,448.99249237,0.00037302,60]
[393260660,1762397664613,370.40775969,0.00037302,60]
[393260661,1762397664842,500.0,0.00037302,60]
[393260662,1762397665168,371.18075355,0.00037302,60]
[393260663,1762397665208,558.42149331,0.00037302,60]
[393260664,1762397665292,295.64922176,0.00037302,60]
[393260665,1762397665628,393.84717068,0.00037302,60]
[393260666,1762397666235,457.19123299,0.00037302,60]
[393260667,1762397666272,272.39043724,0.00037302,60]
[393260668,1762397666739,168.89097564,0.00037302,60]
[393260669,1762397667470,500.0,0.00037302,60]
[393260670,1762397667510,268.27202601,0.00037302,60]
[393260671,1762397667754,291.52411914,0.00037302,60]
[393260672,1762397671367,173.09539393,0.00037302,60]
[393260673,1762397672048,171.01820629,0.00037302,60]
[393260674,1762397672093,381.91231201,0.00037302,60]
[393260675,1762397674401,386.83794109,0.00037302,60]
[393260676,1762397675517,189.35119674,0.00037302,60]
[393260677,1762397677484,261.20222937,0.00037302,60]
[393260678,1762397677526,206.89033568,0.00037302,60]
[393260679,1762397679487,299.10655102,0.00037302,60]
[393260680,1762397680377,200.52611169,0.00037302,60]
[393260681,1762397683059,387.57026434,0.00037302,60]
[393260682,1762397683760,319.67751437,0.00037302,60]
[393260683,1762397684982,528.84619602,0.00037302,60]
[393260684,1762397685755,247.59833295,0.00037302,60]
[393260685,1762397687273,392.83,0.00037302,60]
[393260686,1762397689222,500.0,0.00037302,60]
[393260687,1762397689503,317.77968425,0.00037302,60]
[393260688,1762397689682,184.02531568,0.00037302,60]
[393260689,1762397689832,394.52827906,0.00037302,60]
[393260690,1762397689987,357.41348,0.00037302,60]
[393260691,1762397690039,213.64109698,0.00037302,60]
[393260692,1762397692004,417.97233055,0.00037302,60]
[393260693,1762397692537,429.51400742,0.00037302,60]
[393260694,1762397694298,265.86172155,0.00037302,60]
[393260695,1762397695996,224.93497683,0.00037302,60]
[393260696,1762397698803,265.28455568,0.00037302,60]
[393260697,1762397703401,1288.05977315,0.00016,2]
[393260698,1762397703483,280.53144758,0.00037302,60]
[393260699,1762397703531,403.68281794,0.00037302,60]
[393260700,1762397705929,441.1623774,0.00037302,60]
[393260701,1762397706638,151.0,0.00037302,60]
[393260702,1762397706896,236.4006258,0.00037302,60]
[393260703,1762397707031,153.08319952,0.00037302,60]
[393260704,1762397707202,250.0,0.00037302,60]
[393260705,1762397707249,161.26404366,0.00037302,60]
[393260706,1762397707297,151.0,0.00037302,60]
[393260707,1762397707646,165.26867384,0.00037302,60]
[393260708,1762397708851,313.43187916,0.00037302,60]
[393260709,1762397710029,414.0,0.00037302,60]
[393260710,1762397710075,151.0,0.00037302,60]
[393260711,1762397710352,300.0,0.00037302,60]
[393260712,1762397710395,151.0,0.00037302,60]
[393260713,1762397710652,429.318,0.00037302,60]
[393260714,1762397710723,151.0,0.00037302,60]
[393260715,1762397710966,425.02167701,0.00037302,60]
[393260716,1762397711008,300.0,0.00037302,60]
[393260717,1762397711046,156.587,0.00037302,60]
[393260718,1762397711210,250.0,0.00037302,60]
[393260719,1762397711250,446.43617992,0.00037302,60]
[393260720,1762397711295,429.318,0.00037302,60]
[393260721,1762397711641,156.587,0.00037302,60]
[393260722,1762397712020,250.0,0.00037302,60]
[393260723,1762397712598,151.0,0.00037302,60]
[393260724,1762397712695,250.0,0.00037302,60]
[393260725,1762397713289,250.0,0.00037302,60]
[393260726,1762397713657,318.94722804,0.00037302,60]
[393260727,1762397713699,324.16550537,0.00037302,60]
[393260728,1762397713743,156.587,0.00037302,60]
[393260729,1762397713908,250.0,0.00037302,60]
[393260730,1762397714340,162.380719,0.00037302,60]
[393260731,1762397714528,250.0,0.00037302,60]
[393260732,1762397714656,250.0,0.00037302,60]
[393260733,1762397714957,168.3888056,0.00037302,60]
[393260734,1762397715126,250.0,0.00037302,60]
[393260735,1762397715283,250.0,0.00037302,60]
[393260736,1762397715609,174.61919141,0.00037302,60]
[393260737,1762397715765,338.17224571,0.00037302,60]
[393260738,1762397715885,250.0,0.00037302,60]
[393260739,1762397716002,250.0,0.00037302,60]
[393260740,1762397716221,181.08010149,0.00037302,60]
[393260741,1762397716801,250.0,0.00037302,60]
[393260742,1762397716854,187.78006525,0.00037302,60]
[393260743,1762397716957,250.0,0.00037302,60]
[393260744,1762397717324,250.0,0.00037302,60]
[393260745,1762397717481,194.72792766,0.00037302,60]
[393260746,1762397717576,250.0,0.00037302,60]
[393260747,1762397717926,250.0,0.00037302,60]
[393260748,1762397718089,201.93286099,0.00037302,60]
[393260749,1762397718202,250.0,0.00037302,60]
[393260750,1762397718588,250.0,0.00037302,60]
[393260751,1762397718740,209.40437684,0.00037302,60]
[393260752,1762397719364,217.15233878,0.00037302,60]
[393260753,1762397720059,225.18697532,0.00037302,60]
[393260754,1762397720657,233.51889341,0.00037302,60]
[393260755,1762397720704,179.31685548,0.00037302,60]
[393260756,1762397721311,242.15909246,0.00037302,60]
[393260757,1762397721941,251.11897888,0.00037302,60]
[393260758,1762397722561,260.4103811,0.00037302,60]
[393260759,1762397723270,270.0455652,0.00037302,60]
[393260760,1762397723893,280.03725112,0.00037302,60]
[393260761,1762397724645,290.39862941,0.00037302,60]
[393260762,1762397725348,290.39862941,0.00037302,60]
[393260763,1762397729696,382.36605454,0.00037302,60]
[393260764,1762397731785,307.26511557,0.00037302,60]
[393260765,1762397731829,328.58189668,0.00037302,60]
[393260766,1762397733629,180.0,0.00037302,30]
[393260767,1762397733828,293.52780404,0.00037302,60]
[393260768,1762397734725,180.0,0.00037302,30]
[393260769,1762397735340,180.0,0.00037302,30]
[393260770,1762397735991,180.0,0.00037302,30]
[393260771,1762397736619,180.0,0.00037302,30]
[393260772,1762397737262,180.0,0.00037302,30]
[393260773,1762397737870,180.0,0.00037302,30]
[393260774,1762397738490,180.0,0.00037302,30]
[393260775,1762397739129,180.0,0.00037302,30]
[393260776,1762397739210,398.01458506,0.00037302,60]
[393260777,1762397739740,180.0,0.00037302,30]
[393260778,1762397741206,180.0,0.00037302,30]
[393260779,1762397741821,180.0,0.00037302,30]
[393260780,1762397742434,180.0,0.00037302,30]
[393260781,1762397742909,510.76926871,0.00037302,60]
[393260782,1762397743044,180.0,0.00037302,30]
[393260783,1762397743183,304.6628806,0.00037302,60]
[393260784,1762397743366,500.0,0.00037302,60]
[393260785,1762397743686,180.0,0.00037302,30]
[393260786,1762397744338,180.0,0.00037302,30]
[393260787,1762397744448,397.41749369,0.00037302,60]
[393260788,1762397745398,508.99836983,0.00037302,60]
[393260789,1762397745452,375.61825637,0.00037302,60]
[393260790,1762397745590,195.12860465,0.00037302,60]
[393260791,1762397751271,500.0,0.00037302,60]
[393260792,1762397751564,315.04940151,0.00037302,60]
[393260793,1762397754660,222.72293223,0.00037302,60]
[393260794,1762397754703,351.08684278,0.00037302,60]
[393260795,1762397756560,388.2199709,0.00037302,60]
[393260796,1762397759692,227.85885298,0.00037302,60]
[393260797,1762397760652,517.25328798,0.00037302,60]
[393260799,1762397762304,396.91750725,0.00037302,60]
[393260800,1762397762740,500.0,0.00037302,60]
[393260801,1762397762985,441.52177041,0.00037302,60]
[393260804,1762397764348,617.82110737,0.00037302,60]
[393260805,1762397764392,517.60428741,0.00037302,60]
[393260807,1762397768264,500.0,0.00037302,60]
[393260808,1762397768471,502.90839928,0.00037302,60]
[393260809,1762397768521,162.76318573,0.00037302,60]
[393260810,1762397768622,504.07591471,0.00037302,60]
[393260811,1762397770147,555.27380221,0.00037302,60]
[393260812,1762397773564,246.97058786,0.00037302,60]
[393260813,1762397775621,500.0,0.00037302,30]
[393260814,1762397775665,500.0,0.00037302,60]
[393260815,1762397775757,518.57478239,0.00037302,30]
[393260816,1762397775912,164.21196537,0.00037302,60]
[393260817,1762397775985,190.49513498,0.00037302,30]
[393260818,1762397778115,345.50573963,0.00037302,60]
[393260819,1762397778445,500.0,0.00037302,60]
[393260820,1762397779060,333.49175364,0.00037302,60]
[393260821,1762397783015,191.39544267,0.00037302,60]
[393260822,1762397784092,200.0,0.00037302,30]
[393260823,1762397785146,500.0,0.00037302,60]
[393260824,1762397785513,343.77730687,0.00037302,60]
[393260825,1762397786954,387.48,0.00037302,60]
[393260826,1762397787415,500.0,0.00037302,60]
[393260827,1762397787729,404.77117947,0.00037302,60]
[393260828,1762397789417,500.0,0.00037302,60]
[393260829,1762397789727,295.92958552,0.00037302,60]
[393260830,1762397790692,379.29876491,0.00037302,60]
[393260831,1762397792535,268.72146108,0.00037302,60]
[393260832,1762397793694,214.01371211,0.00037302,60]
[393260833,1762397794792,500.0,0.00037302,60]
[393260834,1762397794836,324.40902198,0.00037302,60]
[393260835,1762397795051,446.48570477,0.00037302,60]
[393260836,1762397796853,447.53062462,0.00037302,60]
[393260837,1762397796998,505.60691367,0.00037302,60]
[393260838,1762397797228,500.0,0.00037302,60]
[393260839,1762397797507,371.9717198,0.00037302,60]
[393260840,1762397799926,504.42805944,0.00037302,60]
[393260841,1762397799971,500.0,0.00037302,60]
[393260842,1762397801109,503.62040966,0.00037302,60]
[393260843,1762397803044,513.39252695,0.00037302,60]
[393260844,1762397803308,500.0,0.00037302,60]
[393260845,1762397803603,198.25614567,0.00037302,60]
[393260846,1762397804125,500.0,0.00037302,60]
[393260847,1762397804205,551.70721491,0.00037302,60]
[393260848,1762397804376,582.8278965,0.00037302,60]
[393260849,1762397805048,368.158065,0.00037302,60]
[393260850,1762397806188,513.17041033,0.00037302,60]
[393260851,1762397807138,503.77170681,0.00037302,60]
[393260852,1762397808138,500.0,0.00037302,60]
[393260853,1762397808408,500.0,0.00037302,60]
[393260854,1762397808556,520.59705899,0.00037302,60]
[393260855,1762397808664,243.25633021,0.00037302,60]
[393260856,1762397813010,426.82421881,0.00037302,60]
[393260857,1762397814175,516.78695836,0.00037302,60]
[393260858,1762397814812,500.0,0.00037302,60]
[393260859,1762397818258,343.79287879,0.00037302,60]
[393260860,1762397818763,500.0,0.00037302,60]
[393260861,1762397821247,374.98358541,0.00037302,60]
[393260862,1762397821609,162.64539537,0.00037302,60]
[393260863,1762397821867,500.0,0.00037302,60]
[393260864,1762397822140,634.95323185,0.00037302,60]
[393260865,1762397823321,574.59901641,0.00037302,60]
[393260866,1762397824579,500.0,0.00037302,60]
[393260867,1762397824906,354.95882207,0.00037302,60]
[393260869,1762397825255,500.0,0.00037302,60]
[393260870,1762397825305,500.0,0.00037302,60]
[393260872,1762397825526,268.20609737,0.00037302,60]
[393260873,1762397825570,387.10477963,0.00037302,60]
[393260876,1762397828481,500.8282274,0.00037302,60]
[393260877,1762397828581,203.65132683,0.00037302,60]
[393260878,1762397829239,414.970976,0.00037302,60]
[393260879,1762397829766,508.04588039,0.00037302,60]
[393260881,1762397830538,500.0,0.00037302,60]
[393260882,1762397830795,500.0,0.00037302,60]
[393260883,1762397831039,323.92282459,0.00037302,60]
[393260884,1762397831624,500.0,0.00037302,60]
[393260885,1762397831686,503.90541531,0.00037302,60]
[393260886,1762397831883,331.74179472,0.00037302,60]
[393260887,1762397832191,528.42172256,0.00037302,60]
[393260888,1762397833427,500.0,0.00037302,60]
[393260889,1762397833726,500.0,0.00037302,60]
[393260890,1762397834037,500.0,0.00037302,60]
[393260891,1762397834078,500.0,0.00037302,60]
[393260892,1762397834331,156.64384951,0.00037302,60]
[393260893,1762397834417,226.55062981,0.00037302,60]
[393260894,1762397837048,500.0,0.00037302,60]
[393260895,1762397837316,500.0,0.00037302,60]
[393260897,1762397837593,500.0,0.00037302,60]
[393260898,1762397837869,287.0097415,0.00037302,60]
[393260899,1762397843785,510.735086,0.00037302,60]
[393260900,1762397844063,500.0,0.00037302,60]
[393260901,1762397844344,500.0,0.00037302,60]
[393260902,1762397844619,176.41288807,0.00037302,60]
[393260903,1762397846690,323.38940289,0.00037302,60]
[393260904,1762397846739,500.0,0.00037302,60]
[393260905,1762397848756,500.0,0.00037302,60]
[393260906,1762397849052,414.45880392,0.00037302,60]
[393260907,1762397851518,500.0,0.00037302,60]
[393260908,1762397851570,500.0,0.00037302,60]
[393260909,1762397851767,500.0,0.00037302,60]
[393260910,1762397852021,202.94,0.00037302,60]
[393260911,1762397854021,500.0,0.00037302,60]
[393260912,1762397854290,354.70279805,0.00037302,60]
[393260913,1762397855356,500.0,0.00037302,60]
[393260914,1762397855447,533.08877095,0.00037302,60]
[393260915,1762397856339,512.1936471,0.00037302,60]
[393260916,1762397856811,500.0,0.00037302,60]
[393260917,1762397857090,564.70054643,0.00037302,60]
[393260918,1762397857412,512.17506791,0.00037302,60]
[393260919,1762397857684,244.95295961,0.00037302,60]
[393260920,1762397858962,500.0,0.00037302,60]
[393260921,1762397859221,500.0,0.00037302,60]
[393260923,1762397861182,510.32550328,0.00037302,60]
[393260924,1762397861309,162.84834388,0.00037302,60]
[393260925,1762397861460,533.59592612,0.00037302,60]
[393260926,1762397861502,371.8444021,0.00037302,60]
[393260927,1762397861545,500.0,0.00037302,60]
[393260928,1762397861784,500.0,0.00037302,60]
[393260929,1762397862018,292.21203352,0.00037302,60]
[393260930,1762397863336,509.38390154,0.00037302,60]
[393260931,1762397863379,500.0,0.00037302,60]
[393260932,1762397863421,504.81590856,0.00037302,60]
[393260933,1762397863998,213.51164924,0.00037302,60]
[393260934,1762397865037,577.16716997,0.00037302,60]
[393260935,1762397866917,500.0,0.00037302,60]
[393260936,1762397867112,500.0,0.00037302,60]
[393260937,1762397867470,500.0,0.00037302,60]
[393260938,1762397867733,535.50572056,0.00037302,60]
[393260939,1762397867994,500.0,0.00037302,60]
[393260940,1762397868271,500.0,0.00037302,60]
[393260941,1762397868571,405.03089776,0.00037302,60]
[393260942,1762397870876,500.0,0.00037302,60]
[393260943,1762397872295,500.0,0.00037302,60]
[393260944,1762397872528,246.66398857,0.00037302,60]
[393260945,1762397872955,239.98169397,0.00037302,60]
[393260946,1762397874597,206.50245852,0.00037302,60]
[393260947,1762397875067,522.80318788,0.00037302,60]
[393260948,1762397875685,512.46794787,0.00037302,60]
[393260949,1762397876226,500.0,0.00037302,60]
[393260950,1762397876952,500.0,0.00037302,60]
[393260951,1762397877219,500.0,0.00037302,60]
[393260952,1762397877472,164.59323303,0.00037302,60]
[393260953,1762397878509,500.0,0.00037302,60]
[393260954,1762397878780,500.0,0.00037302,60]
[393260955,1762397879089,500.0,0.00037302,60]
[393260956,1762397879386,212.37907567,0.00037302,60]
[393260957,1762397879892,500.0,0.00037302,60]
[393260958,1762397879951,501.96460673,0.00037302,60]
[393260959,1762397880171,223.56976934,0.00037302,60]
[393260960,1762397881057,548.84729683,0.00037302,60]
[393260961,1762397882124,500.0,0.00037302,60]
[393260962,1762397882403,306.26,0.00037302,60]
[393260963,1762397882482,503.46997094,0.00037302,60]
[393260964,1762397883034,500.0,0.00037302,60]
[393260965,1762397883079,500.0,0.00037302,60]
[393260966,1762397883124,500.0,0.00037302,60]
[393260967,1762397883271,231.47155325,0.00037302,60]
[393260968,1762397883371,500.0,0.00037302,60]
[393260969,1762397883402,371.81,0.00015981,2]
[393260970,1762397883583,322.0619775,0.00037302,60]
[393260971,1762397883629,500.0,0.00037302,60]
[393260972,1762397883794,743.62,0.00016742,2]
[393260973,1762397883863,500.0,0.00037302,60]
[393260974,1762397884185,1115.44,0.00017503,2]
[393260975,1762397884244,500.0,0.00037302,60]
[393260976,1762397884529,500.0,0.00037302,60]
[393260977,1762397885291,505.02294639,0.00037302,60]
[393260978,1762397887859,500.0,0.00037302,60]
[393260979,1762397888101,500.0,0.00037302,60]
[393260980,1762397888149,500.0,0.00037302,60]
[393260981,1762397888373,362.00134423,0.00037302,60]
[393260982,1762397888547,500.0,0.00037302,60]
[393260983,1762397888597,554.24946289,0.00037302,60]
[393260984,1762397888637,531.16869089,0.00037302,60]
[393260985,1762397889399,500.0,0.00037302,60]
[393260986,1762397889647,509.79003273,0.00037302,60]
[393260987,1762397890599,643.43028894,0.00037302,60]
[393260988,1762397891452,500.0,0.00037302,60]
[393260989,1762397891663,500.0,0.00037302,60]
[393260990,1762397891707,500.0,0.00037302,60]
[393260991,1762397891746,476.6572658,0.00037302,60]
[393260992,1762397893365,500.0,0.00037302,60]
[393260993,1762397893414,574.51152269,0.00037302,60]
[393260994,1762397893729,208.79815503,0.00037302,60]
[393260995,1762397895472,293.02841835,0.00037302,60]
[393260996,1762397895725,500.0,0.00037302,60]
[393260997,1762397895972,500.0,0.00037302,60]
[393260998,1762397896223,500.0,0.00037302,60]
[393260999,1762397896463,562.79513828,0.00037302,60]
[393261000,1762397897301,500.0,0.00037302,60]
[393261001,1762397897536,564.21202657,0.00037302,60]
[393261002,1762397897576,500.0,0.00037302,60]
[393261003,1762397897630,500.0,0.00037302,60]
[393261004,1762397897807,500.0,0.00037302,60]
[393261005,1762397897920,397.83813686,0.00037302,60]
[393261006,1762397898056,208.14299534,0.00037302,60]
[393261007,1762397898843,519.30259837,0.00037302,60]
[393261008,1762397899576,500.0,0.00037302,60]
[393261009,1762397899853,500.0,0.00037302,60]
[393261010,1762397900125,531.22710333,0.00037302,60]
[393261011,1762397904966,503.68394401,0.00037302,60]
[393261012,1762397907974,500.0,0.00037302,60]
[393261013,1762397908220,608.61945171,0.00037302,60]
[393261014,1762397908431,500.0,0.00037302,60]
[393261015,1762397908772,233.25836492,0.00037302,60]
[393261016,1762397910269,511.67068381,0.00037302,60]
[393261017,1762397911373,535.98821335,0.00037302,60]
[393261018,1762397912306,511.40637993,0.00037302,60]
[393261020,1762397913909,522.88537513,0.00037302,60]
[393261021,1762397915823,500.0,0.00037302,60]
[393261022,1762397915891,500.0,0.00037302,60]
[393261023,1762397916128,411.44174766,0.00037302,60]
[393261024,1762397918349,517.01820739,0.00037302,60]
[393261025,1762397918883,344.0870848,0.00037302,60]
[393261026,1762397921211,500.0,0.00037302,60]
[393261027,1762397921493,500.0,0.00037302,60]
[393261028,1762397921786,240.71285396,0.00037302,60]
[393261030,1762397923416,461.69908974,0.00037302,60]
[393261031,1762397924794,515.30053102,0.00037302,60]
[393261032,1762397926597,505.2603352,0.00037302,60]
[393261033,1762397927636,509.12253502,0.00037302,60]
[393261034,1762397930658,506.55553066,0.00037302,60]
[393261035,1762397931798,500.0,0.00037302,60]
[393261036,1762397932068,500.0,0.00037302,60]
[393261037,1762397932308,500.0,0.00037302,60]
[393261038,1762397932571,322.05208321,0.00037302,60]
[393261039,1762397932715,500.0,0.00037302,60]
[393261040,1762397933009,241.7737056,0.00037302,60]
[393261041,1762397933428,500.0,0.00037302,60]
[393261042,1762397933723,254.23932323,0.00037302,60]
[393261043,1762397937550,500.0,0.00037302,60]
[393261044,1762397937809,360.5980776,0.00037302,60]
[393261045,1762397938374,500.0,0.00037302,60]
[393261046,1762397938604,515.54692586,0.00037302,60]
[393261047,1762397938637,500.0,0.00037302,60]
[393261048,1762397938871,517.33858985,0.00037302,60]
[393261049,1762397939623,510.37131542,0.00037302,60]
[393261050,1762397941263,507.09273804,0.00037302,60]
[393261051,1762397944922,500.0,0.00037302,60]
[393261052,1762397945197,380.11232138,0.00037302,60]
[393261053,1762397945487,292.0057306,0.00037302,60]
[393261054,1762397945921,500.0,0.00037302,60]
[393261055,1762397946196,500.0,0.00037302,60]
[393261056,1762397946454,500.0,0.00037302,60]
[393261057,1762397946788,190.56572456,0.00037302,60]
[393261058,1762397946957,500.0,0.00037302,60]
[393261059,1762397947027,500.0,0.00037302,60]
[393261060,1762397947063,500.0,0.00037302,60]
[393261061,1762397947248,500.0,0.00037302,60]
[393261062,1762397947325,597.28974487,0.00037302,60]
[393261063,1762397947507,500.0,0.00037302,60]
[393261064,1762397947779,500.0,0.00037302,60]
[393261065,1762397948181,500.0,0.00037302,60]
[393261066,1762397948439,500.0,0.00037302,60]
[393261067,1762397948697,337.66307591,0.00037302,60]
[393261068,1762397949197,500.0,0.00037302,60]
[393261069,1762397951150,509.78668073,0.00037302,60]
[393261072,1762397952239,500.0,0.00037302,60]
[393261073,1762397952514,500.0,0.00037302,60]
[393261074,1762397952778,379.8239767,0.00037302,60]
[393261075,1762397953033,209.74991392,0.00037302,60]
[393261076,1762397953971,500.0,0.00037302,60]
[393261077,1762397954198,539.07563984,0.00037302,60]
[393261078,1762397956640,509.09017877,0.00037302,60]
[393261079,1762397957805,500.0,0.00037357,60]
[393261080,1762397958355,500.0,0.00037357,60]
[393261081,1762397958645,416.19671321,0.00037357,60]
[393261082,1762397959769,537.39452043,0.00037357,60]
[393261083,1762397960791,440.2090685,0.00037357,60]
[393261084,1762397962627,506.41659652,0.00037357,60]
[393261085,1762397962930,500.0,0.00037357,60]
[393261086,1762397963207,500.0,0.00037357,60]
[393261087,1762397963470,511.37142948,0.00037357,60]
[393261088,1762397969262,613.21575124,0.00037357,60]
[393261089,1762397971047,500.0,0.00037357,35]
[393261090,1762397971350,500.0,0.00037357,35]
[393261091,1762397971487,228.39550061,0.00037357,60]
[393261092,1762397971598,500.0,0.00037357,35]
[393261093,1762397971884,500.0,0.00037357,35]
[393261094,1762397972124,500.0,0.00037357,60]
[393261095,1762397972159,500.0,0.00037357,35]
[393261096,1762397972253,500.0,0.00037357,60]
[393261097,1762397972302,165.25547719,0.00037357,60]
[393261098,1762397972376,255.25675016,0.00037357,60]
[393261099,1762397972426,500.0,0.00037357,35]
[393261100,1762397972544,500.0,0.00037357,60]
[393261101,1762397972714,500.0,0.00037357,35]
[393261102,1762397972923,500.0,0.00037357,60]
[393261103,1762397972965,500.0,0.00037357,35]
[393261104,1762397973240,500.0,0.00037357,35]
[393261105,1762397973278,343.64342837,0.00037357,60]
[393261106,1762397973472,190.47507505,0.00037357,60]
[393261107,1762397973512,500.0,0.00037357,35]
[393261108,1762397973773,341.43,0.00037357,35]
[393261110,1762397977251,500.0,0.00037357,60]
[393261111,1762397977570,500.0,0.00037357,60]
[393261112,1762397977604,500.0,0.00037357,60]
[393261113,1762397977648,500.0,0.00037357,60]
[393261114,1762397977789,465.62344619,0.00037357,60]
[393261115,1762397977900,197.50087273,0.00037357,60]
[393261116,1762397979240,436.78112575,0.00037357,60]
[393261117,1762397979929,517.96227593,0.00037357,60]
[393261118,1762397981637,500.0,0.00037357,60]
[393261119,1762397981926,500.0,0.00037357,60]
[393261120,1762397981967,509.57627589,0.00037357,60]
[393261121,1762397982196,336.70115999,0.00037357,60]
[393261122,1762397983899,510.35789688,0.00037357,60]
[393261123,1762397983940,500.0,0.00037357,60]
[393261124,1762397984152,433.83434952,0.00037357,60]
[393261125,1762397984313,500.0,0.00037357,60]
[393261126,1762397984547,500.0,0.00037357,60]
[393261127,1762397985950,500.0,0.00037357,60]
[393261128,1762397986217,500.0,0.00037357,60]
[393261129,1762397986501,500.0,0.00037357,60]
[393261130,1762397986801,500.0,0.00037357,60]
[393261131,1762397987067,500.0,0.00037357,60]
[393261132,1762397987328,500.0,0.00037357,60]